bitfinex/quotes_SOLUSD_20240913
["timestamp","ask_amount","ask_price","bid_price","bid_amount"]
[1726242827566,13.6015,136.94,136.86,20.0]
[1726242828756,13.6012,136.94,136.86,20.0]
[1726242828947,8.12484264,136.94,136.87,0.25098]
[1726242829160,8.12484264,136.94,136.87,22.6865209]
[1726242829352,6.2986,136.94,136.87,22.6865209]
[1726242829768,0.2572509,136.95,136.87,22.6865209]
[1726242830457,6.3622,136.92,136.81,22.4355409]
[1726242830776,1.82673721,136.91,136.81,22.4355409]
[1726242831259,6.3622,136.92,136.87,22.4355409]
[1726242831573,23.2549,136.94,136.87,22.4355409]
[1726242831574,15.9524,136.94,136.87,22.4355409]
[1726242832380,15.9524,136.94,136.88,0.25098]
[1726242833166,1.82602808,136.93,136.88,0.25098]
[1726242833976,15.9524,136.94,136.88,0.25098]
[1726242834160,17.77827264,136.94,136.88,0.25098]
[1726242836284,25.08077264,136.94,136.88,0.25098]
[1726242838166,25.08077264,136.94,136.87,22.4355409]
[1726242838167,7.303,136.93,136.85,42.4355409]
[1726242839378,7.303,136.93,136.86,0.25098]
[1726242839760,7.3041,136.91,136.83,22.4355409]
[1726242839960,1.82664467,136.9,136.83,22.4355409]
[1726242840277,15.4853,136.89,136.81,22.4355409]
[1726242840453,1.82672532,136.88,136.81,22.4355409]
[1726242841455,21.796,136.89,136.81,22.4355409]
[1726242841779,21.796,136.89,136.82,0.12549]
[1726242842153,23.62272585,136.89,136.82,0.12549]
[1726242842358,23.62272585,136.89,136.83,14.37954493]
[1726242842662,23.62272585,136.89,136.84,0.12549]
[1726242842852,23.62272585,136.89,136.84,0.25098]
[1726242843055,21.796,136.89,136.84,0.25098]
[1726242843467,21.796,136.89,136.84,14.63052493]
[1726242844958,15.4853,136.89,136.88,14.37954493]
[1726242845166,22.4622,136.93,136.88,14.63052493]
[1726242845478,22.4622,136.93,136.81,43.776884]
[1726242845479,0.2572509,136.95,136.91,0.25098]
[1726242845859,0.2572509,136.95,136.93,14.37954493]
[1726242846061,0.2572509,136.95,136.91,22.68886839]
[1726242846259,0.2572509,136.95,136.91,0.25098]
[1726242846785,0.2572509,136.95,136.91,22.68886839]
[1726242846962,0.2572509,136.95,136.91,0.25098]
[1726242847366,0.2572509,136.95,136.9,0.12549]
[1726242847681,7.5595509,136.95,136.9,0.12549]
[1726242847880,9.12848056,136.94,136.87,20.0]
[1726242848467,9.12848056,136.94,136.86,20.0]
[1726242848879,1.82598056,136.94,136.86,20.0]
[1726242849690,9.12848056,136.94,136.86,20.0]
[1726242850189,9.12848056,136.94,136.87,0.12549]
[1726242850374,1.82598056,136.94,136.85,22.43788839]
[1726242850573,23.0636,136.93,136.85,22.43788839]
[1726242850889,1.82626953,136.92,136.85,22.43788839]
[1726242851669,1.82626953,136.92,136.86,0.25098]
[1726242852982,1.82626953,136.92,136.9,22.43788839]
[1726242853215,0.2572509,136.95,136.92,0.25098]
[1726242853448,0.2572509,136.95,136.92,22.68886839]
[1726242853715,0.2572509,136.95,136.94,0.12549]
[1726242854168,0.2572509,136.95,136.92,0.25098]
[1726242854777,0.2572509,136.95,136.91,0.25098]
[1726242855187,0.2572509,136.95,136.91,0.12549]
[1726242855387,0.2572509,136.95,136.91,0.25098]
[1726242857065,0.2572509,136.95,136.93,22.43788839]
[1726242857407,0.2572509,136.95,136.94,0.12549]
[1726242858406,0.2572509,136.95,136.91,22.56337839]
[1726242858693,0.2572509,136.95,136.92,0.12549]
[1726242860392,0.2572509,136.95,136.9,20.0]
[1726242861700,0.2572509,136.95,136.91,0.12549]
[1726242862572,0.2572509,136.95,136.89,22.43788839]
[1726242862772,0.2572509,136.95,136.87,22.43788839]
[1726242862974,2.08333297,136.95,136.87,22.43788839]
[1726242863171,0.2572509,136.95,136.87,22.43788839]
[1726242863401,2.08326327,136.95,136.87,22.43788839]
[1726242863991,0.2572509,136.95,136.87,22.43788839]
[1726242864198,0.2572509,136.95,136.88,0.25098]
[1726242864775,0.2572509,136.95,136.9,0.25098]
[1726242866597,0.2572509,136.95,136.8,22.4325509]
[1726242866598,21.5982,136.94,136.8,22.4325509]
[1726242866783,9.13000708,136.93,136.82,22.43788839]
[1726242866986,7.3035,136.92,136.82,22.43788839]
[1726242867292,1.82658782,136.92,136.84,22.43788839]
[1726242867907,1.82658782,136.92,136.84,20.0]
[1726242868105,1.82649336,136.92,136.84,20.0]
[1726242868404,1.82629133,136.93,136.85,22.43788839]
[1726242868704,1.82635469,136.92,136.84,20.0]
[1726242868890,9.12985469,136.92,136.84,20.0]
[1726242869205,9.12957002,136.93,136.85,0.25098]
[1726242869379,9.12986556,136.92,136.85,0.25098]
[1726242869787,7.3035,136.92,136.85,0.25098]
[1726242870504,1.82652471,136.92,136.85,0.25098]
[1726242870903,7.3031,136.93,136.85,0.25098]
[1726242871707,1.82635079,136.92,136.85,0.25098]
[1726242872194,1.82635079,136.92,136.81,46.21477239]
[1726242872393,1.82635079,136.92,136.81,22.43788839]
[1726242872773,22.2026,136.91,136.83,22.43788839]
[1726242873181,1.826614,136.9,136.83,22.43788839]
[1726242874100,24.02912667,136.91,136.84,20.25098]
[1726242875096,22.2026,136.91,136.84,20.25098]
[1726242876679,1.82643103,136.9,136.84,0.25098]
[1726242876916,1.82643103,136.9,136.81,22.43788839]
[1726242876917,1.82661515,136.89,136.83,0.25098]
[1726242877476,1.82661515,136.89,136.82,20.0]
[1726242878710,1.82661515,136.89,136.83,0.25098]
[1726242879008,1.82671395,136.9,136.83,0.25098]
[1726242879927,7.3067,136.87,136.8,0.2572509]
[1726242880217,15.0799,136.85,136.8,0.2572509]
[1726242880811,16.90714136,136.85,136.8,0.2572509]
[1726242881189,6.2361,136.84,136.8,0.2572509]
[1726242881396,1.82749859,136.83,136.8,0.2572509]
[1726242881613,8.06359928,136.84,136.8,0.2572509]
[1726242882314,6.2361,136.84,136.8,0.2572509]
[1726242882883,8.0635771,136.84,136.8,0.2572509]
[1726242883509,6.2361,136.84,136.8,0.2572509]
[1726242883693,1.82746923,136.83,136.8,0.2572509]
[1726242884100,6.2361,136.84,136.8,0.2572509]
[1726242884307,8.06356901,136.84,136.8,0.2572509]
[1726242884814,6.2361,136.84,136.8,0.2572509]
[1726242888813,1.8273759,136.83,136.8,0.2572509]
[1726242889207,6.2361,136.84,136.8,0.2572509]
[1726242889420,1.82748342,136.83,136.8,0.2572509]
[1726242889819,6.2361,136.84,136.8,0.2572509]
[1726242890891,1.8274946,136.83,136.8,0.2572509]
[1726242891091,1.82752568,136.82,136.8,0.2572509]
[1726242891296,6.2361,136.84,136.8,0.2572509]
[1726242891618,1.82749806,136.83,136.8,0.2572509]
[1726242891795,1.82772439,136.82,136.8,0.2572509]
[1726242892726,1.8277179,136.83,136.8,0.2572509]
[1726242892923,1.82772034,136.81,136.8,0.2572509]
[1726242893097,1.82771979,136.83,136.8,0.2572509]
[1726242894908,1.827293,136.83,136.8,0.2572509]
[1726242895213,7.2341,136.84,136.8,0.2572509]
[1726242896095,1.82735616,136.83,136.8,0.2572509]
[1726242896909,7.2341,136.84,136.8,0.2572509]
[1726242897231,22.7032,136.88,136.81,0.04311672]
[1726242897401,30.009,136.88,136.8,20.2572509]
[1726242898017,22.7032,136.88,136.8,20.2572509]
[1726242898599,1.82710433,136.87,136.8,20.2572509]
[1726242898907,9.13360433,136.87,136.8,20.2572509]
[1726242899207,1.82710433,136.87,136.8,20.2572509]
[1726242899409,7.3065,136.87,136.8,20.2572509]
[1726242899794,44.6832,136.88,136.8,0.2572509]
[1726242899795,9.13437946,136.86,136.8,0.2572509]
[1726242900002,7.3078,136.84,136.8,0.2572509]
[1726242900222,1.82765686,136.83,136.8,0.2572509]
[1726242900427,7.3079,136.84,136.8,0.2572509]
[1726242901129,9.13643459,136.83,136.8,0.2572509]
[1726242901429,1.82780855,136.82,136.8,0.2572509]
[1726242902111,9.13670855,136.82,136.8,0.2572509]
[1726242902316,31.11720823,136.81,136.8,0.2572509]
[1726242902512,31.24269823,136.81,136.8,0.2572509]
[1726242903007,9.26269823,136.81,136.8,0.2572509]
[1726242903202,7.43489,136.81,136.8,0.2572509]
[1726242903531,59.41489,136.81,136.8,0.2572509]
[1726242903735,61.24310727,136.81,136.8,0.2572509]
[1726242904029,61.24307509,136.81,136.8,0.2572509]
[1726242904226,29.2915,136.77,136.76,0.2572509]
[1726242904529,81.53388,136.77,136.76,0.2572509]
[1726242904828,83.36269734,136.77,136.76,0.2572509]
[1726242905531,83.36269312,136.77,136.76,0.2572509]
[1726242905833,59.42839,136.77,136.76,0.2572509]
[1726242906010,59.55388,136.77,136.76,0.2572509]
[1726242906409,59.42839,136.77,136.76,0.2572509]
[1726242907042,83.36259616,136.77,136.76,0.2572509]
[1726242907739,83.23710616,136.77,136.76,0.2572509]
[1726242908101,53.82011616,136.77,136.76,0.2572509]
[1726242908706,30.0,136.77,136.76,0.2572509]
[1726242908933,1.82867557,136.79,136.76,0.2572509]
[1726242909236,1.82837869,136.78,136.76,0.2572509]
[1726242909544,0.998,136.77,136.76,0.2572509]
[1726242918507,0.998,136.77,136.76,0.3827409]
[1726242920834,0.998,136.77,136.76,0.2572509]
[1726242922521,0.998,136.77,136.76,22.82062929]
[1726242923847,0.998,136.77,136.76,42.82062929]
[1726242924522,0.998,136.77,136.76,42.94611929]
[1726242924928,0.998,136.77,136.76,49.59771929]
[1726242925130,7.65047283,136.87,136.77,20.25098]
[1726242925443,7.65047283,136.87,136.8,0.12549]
[1726242925644,7.65047283,136.87,136.8,0.25098]
[1726242925645,9.47765557,136.87,136.8,0.25098]
[1726242926240,16.78385557,136.87,136.8,0.25098]
[1726242926541,16.78395557,136.87,136.79,22.43788839]
[1726242928231,38.76395557,136.87,136.79,22.43788839]
[1726242928741,7.3067,136.86,136.79,0.12549]
[1726242928936,1.82730433,136.85,136.79,0.12549]
[1726242929135,9.13480433,136.85,136.78,15.305]
[1726242929444,9.13480433,136.85,136.77,20.0]
[1726242930735,1.82730433,136.85,136.77,20.0]
[1726242931349,9.13470433,136.85,136.77,20.0]
[1726242931957,7.3078,136.84,136.77,20.0]
[1726242932253,9.13600468,136.83,136.76,0.2572509]
[1726242932499,1.82770468,136.82,136.76,0.2572509]
[1726242933247,30.68650468,136.82,136.76,0.2572509]
[1726242933839,0.12549,136.81,136.76,0.2572509]
[1726242934142,29.2901,136.8,136.76,0.2572509]
[1726242934365,7.43499,136.81,136.76,0.2572509]
[1726242934568,21.5498,136.82,136.76,0.2572509]
[1726242935141,23.37766688,136.82,136.76,0.2572509]
[1726242936448,30.68656688,136.82,136.76,0.2572509]
[1726242938075,23.37766688,136.82,136.76,0.2572509]
[1726242938274,7.3105,136.79,136.76,0.2572509]
[1726242938477,1.82817452,136.78,136.76,0.2572509]
[1726242938775,1.95366292,136.81,136.76,0.2572509]
[1726242939174,9.26306292,136.81,136.76,0.2572509]
[1726242939978,1.95366292,136.81,136.76,0.2572509]
[1726242940170,9.26336292,136.81,136.76,0.2572509]
[1726242940760,7.3099,136.8,136.76,0.2572509]
[1726242940962,1.82821476,136.79,136.76,0.2572509]
[1726242941272,1.82814482,136.8,136.76,0.2572509]
[1726242941450,7.64380416,136.84,136.76,22.69513929]
[1726242941651,22.6428,136.85,136.76,22.69513929]
[1726242941851,15.3355,136.85,136.78,22.43788839]
[1726242942257,7.3067,136.86,136.78,22.43788839]
[1726242942462,7.63907693,136.87,136.79,0.12549]
[1726242942658,7.63907693,136.87,136.8,22.43788839]
[1726242942863,1.82720939,136.86,136.8,22.43788839]
[1726242943068,1.82731561,136.85,136.8,22.43788839]
[1726242943271,7.3068,136.86,136.8,22.43788839]
[1726242943578,7.63907693,136.87,136.8,22.43788839]
[1726242943579,14.94527693,136.87,136.8,22.43788839]
[1726242943881,14.94527693,136.87,136.78,6.3195]
[1726242943882,7.3069,136.86,136.78,28.75738839]
[1726242944271,1.82738206,136.85,136.78,28.75738839]
[1726242944470,7.3069,136.86,136.78,28.75738839]
[1726242944681,1.82738985,136.85,136.78,28.75738839]
[1726242944980,0.12549,136.84,136.78,6.3195]
[1726242945188,0.12549,136.86,136.78,6.3195]
[1726242945482,7.3072,136.85,136.78,28.75738839]
[1726242945780,9.1347155,136.85,136.78,28.75738839]
[1726242946358,0.12549,136.86,136.78,28.75738839]
[1726242946359,7.43259,136.86,136.78,28.75738839]
[1726242947985,7.3072,136.85,136.78,28.75738839]
[1726242948186,0.12549,136.83,136.77,15.6468]
[1726242948482,7.3094,136.81,136.76,0.2572509]
[1726242948976,1.82816818,136.8,136.76,0.2572509]
[1726242949186,0.25098,136.83,136.76,0.2572509]
[1726242949187,7.3089,136.82,136.76,0.2572509]
[1726242949482,0.12549,136.83,136.76,0.2572509]
[1726242949863,7.3084,136.83,136.76,0.2572509]
[1726242950283,1.82777793,136.82,136.76,0.2572509]
[1726242950581,21.98,136.86,136.77,0.12549]
[1726242950769,7.3068,136.86,136.78,22.43788839]
[1726242951562,7.63907693,136.87,136.76,22.69513929]
[1726242951761,7.3083,136.84,136.76,22.69513929]
[1726242951964,0.12549,136.83,136.76,0.2572509]
[1726242952194,9.13678198,136.82,136.76,0.2572509]
[1726242953194,1.82798198,136.82,136.76,0.2572509]
[1726242953385,14.94329234,136.84,136.76,0.2572509]
[1726242953692,7.43389,136.83,136.76,0.2572509]
[1726242954065,7.3084,136.83,136.76,0.2572509]
[1726242954267,1.82781584,136.82,136.76,0.2572509]
[1726242954467,7.3084,136.83,136.76,0.2572509]
[1726242954895,36.92339234,136.84,136.76,0.2572509]
[1726242955676,23.776884,136.83,136.76,0.2572509]
[1726242956070,1.82781351,136.82,136.76,0.2572509]
[1726242956792,31.11681351,136.82,136.76,0.2572509]
[1726242956994,29.289,136.82,136.76,0.2572509]
[1726242957293,1.82797468,136.81,136.76,0.2572509]
[1726242957485,29.2892,136.82,136.76,0.2572509]
[1726242957675,1.82801265,136.81,136.76,0.2572509]
[1726242958378,9.13741265,136.81,136.76,0.2572509]
[1726242960094,45.882374,136.8,136.76,0.2572509]
[1726242960392,7.3115,136.77,136.76,0.2572509]
[1726242960699,54.89703859,136.77,136.76,0.2572509]
[1726242961195,1.82865459,136.77,136.76,0.2572509]
[1726242961391,59.2908,136.79,136.76,0.2572509]
[1726242961895,51.98,136.79,136.76,0.2572509]
[1726242962286,45.756884,136.77,136.76,0.2572509]
[1726242962517,1.82860861,136.77,136.76,0.2572509]
[1726242962697,1.82848631,136.77,136.76,0.2572509]
[1726242963378,29.29,136.8,136.76,0.2572509]
[1726242963691,22.7826,136.82,136.76,0.2572509]
[1726242963885,15.4734,136.82,136.76,0.2572509]
[1726242964075,20.09724884,136.85,136.76,0.2572509]
[1726242964280,15.4734,136.86,136.77,16.5307]
[1726242964588,21.48226292,136.88,136.79,22.43788839]
[1726242964889,24.1021541,136.9,136.79,22.43788839]
[1726242964890,3.81372705,136.89,136.79,22.43788839]
[1726242965082,7.3066,136.87,136.79,22.43788839]
[1726242965479,29.2866,136.87,136.79,22.43788839]
[1726242966580,1.82732891,136.86,136.79,22.43788839]
[1726242967200,1.82732849,136.85,136.79,22.43788839]
[1726242967794,29.2866,136.87,136.78,20.25098]
[1726242967992,31.083784,136.86,136.78,42.68886839]
[1726242968196,31.11480098,136.85,136.77,16.5307]
[1726242968808,7.3084,136.83,136.77,16.5307]
[1726242968984,1.82782655,136.82,136.77,16.5307]
[1726242969685,23.776884,136.8,136.77,16.5307]
[1726242969889,1.82804102,136.79,136.76,0.2572509]
[1726242970514,7.3089,136.82,136.76,0.2572509]
[1726242970712,23.776884,136.82,136.76,0.2572509]
[1726242971014,0.12549,136.84,136.76,22.69513929]
[1726242971308,7.3074,136.85,136.77,6.4742]
[1726242971506,1.82777945,136.84,136.77,6.4742]
[1726242971682,7.3074,136.85,136.77,6.4742]
[1726242971878,29.2874,136.85,136.77,6.4742]
[1726242972305,1.82769407,136.84,136.77,6.4742]
[1726242972527,23.776884,136.84,136.77,6.4742]
[1726242972710,1.82761296,136.83,136.77,6.4742]
[1726242973010,1.82761966,136.82,136.77,6.4742]
[1726242973397,23.776884,136.84,136.77,6.4742]
[1726242973605,31.084684,136.84,136.77,6.4742]
[1726242973983,23.776884,136.84,136.77,6.4742]
[1726242974397,1.82769569,136.83,136.77,6.4742]
[1726242974598,31.084784,136.84,136.77,6.4742]
[1726242974798,1.82769569,136.83,136.77,6.4742]
[1726242975414,1.827695,136.82,136.77,6.4742]
[1726242976503,1.82769472,136.83,136.77,6.4742]
[1726242976907,31.084784,136.84,136.77,6.4742]
[1726242977220,9.13599597,136.83,136.77,6.4742]
[1726242977403,1.8278541,136.82,136.77,6.4742]
[1726242977807,7.3083,136.83,136.77,6.4742]
[1726242978320,53.191274,136.82,136.77,6.4742]
[1726242978519,29.41439,136.82,136.77,6.4742]
[1726242978813,23.776884,136.82,136.77,6.4742]
[1726242979497,7.3079,136.84,136.77,6.4742]
[1726242979700,25.60464567,136.83,136.77,6.4742]
[1726242979910,23.776884,136.83,136.77,6.4742]
[1726242980212,1.8278015,136.82,136.77,6.4742]
[1726242980423,1.8278015,136.81,136.77,6.4742]
[1726242980592,31.085184,136.83,136.77,6.4742]
[1726242980906,1.82779835,136.82,136.77,6.4742]
[1726242983006,1.82762469,136.81,136.77,6.4742]
[1726242983207,1.82762814,136.84,136.77,6.4742]
[1726242983412,7.3098,136.81,136.77,6.4742]
[1726242983625,1.82806483,136.8,136.77,6.4742]
[1726242983928,1.82806972,136.79,136.76,0.2572509]
[1726242986035,9.13856972,136.79,136.76,0.2572509]
[1726242986620,29.2901,136.8,136.76,0.2572509]
[1726242986925,18.39639,136.83,136.76,0.2572509]
[1726242986926,21.98,136.83,136.76,0.2572509]
[1726242987130,1.82825485,136.82,136.76,0.2572509]
[1726242987421,9.13725485,136.82,136.76,0.2572509]
[1726242987824,31.11725485,136.82,136.76,0.2572509]
[1726242988122,1.82797229,136.81,136.76,0.2572509]
[1726242988509,9.13603434,136.83,136.76,0.2572509]
[1726242988722,1.82778274,136.82,136.76,0.2572509]
[1726242989922,21.98,136.86,136.78,0.12549]
[1726242990123,7.3069,136.86,136.78,0.12549]
[1726242990313,7.61503925,136.85,136.79,28.74878839]
[1726242990501,7.3072,136.85,136.79,6.3109]
[1726242990705,7.3068,136.86,136.79,6.3109]
[1726242991033,29.60026171,136.87,136.79,6.3109]
[1726242991324,31.11457559,136.86,136.79,6.3109]
[1726242991527,7.3073,136.85,136.79,6.3109]
[1726242991831,1.82745638,136.84,136.79,6.3109]
[1726242992002,29.2879,136.84,136.79,6.3109]
[1726242992198,7.3074,136.85,136.79,6.3109]
[1726242992424,1.82756386,136.84,136.79,6.3109]
[1726242994033,7.62026171,136.87,136.81,22.43788839]
[1726242994222,1.82703263,136.89,136.81,22.43788839]
[1726242994408,1.8269564,136.89,136.81,22.43788839]
[1726242994606,29.2846,136.9,136.81,22.43788839]
[1726242995427,23.902374,136.86,136.8,16.1404]
[1726242995731,23.776884,136.84,136.8,16.1404]
[1726242997909,25.60445176,136.84,136.8,16.1404]
[1726242998110,23.776884,136.84,136.8,16.1404]
[1726242998534,25.60444338,136.84,136.8,16.1404]
[1726242999041,45.756884,136.85,136.8,16.1404]
[1726242999733,1.82752393,136.84,136.8,16.1404]
[1726243000730,9.13562393,136.84,136.8,16.1404]
[1726243000919,29.2883,136.83,136.79,6.3109]
[1726243001211,1.82784195,136.83,136.79,6.3109]
[1726243001413,3.81372705,136.87,136.79,6.3109]
[1726243001612,1.82756351,136.86,136.79,6.3109]
[1726243001813,1.82740921,136.85,136.79,6.3109]
[1726243002323,1.82749855,136.85,136.79,6.3109]
[1726243002643,1.82746784,136.85,136.79,6.3109]
[1726243002850,0.12549,136.85,136.79,6.3109]
[1726243003018,23.902374,136.85,136.79,6.3109]
[1726243003523,1.82748197,136.86,136.79,6.3109]
[1726243003733,1.8273104,136.85,136.79,6.3109]
[1726243004332,31.209274,136.86,136.79,6.3109]
[1726243005228,0.12549,136.86,136.79,6.3109]
[1726243005544,31.084184,136.85,136.79,6.3109]
[1726243006131,0.12549,136.84,136.79,6.3109]
[1726243007239,7.3086,136.83,136.76,16.7909509]
[1726243007431,33.03912976,136.82,136.76,23.3715509]
[1726243007743,31.211274,136.82,136.76,23.3715509]
[1726243008244,1.82802728,136.81,136.76,23.3715509]
[1726243008446,31.086784,136.8,136.76,23.3715509]
[1726243008741,1.82810183,136.79,136.76,23.3715509]
[1726243009241,23.776884,136.78,136.76,23.3715509]
[1726243009437,1.82822878,136.77,136.76,23.3715509]
[1726243009942,23.776884,136.78,136.76,23.3715509]
[1726243011317,23.776884,136.78,136.76,0.2572509]
[1726243011534,45.756884,136.77,136.76,0.2572509]
[1726243012044,53.068384,136.77,136.76,0.2572509]
[1726243013457,23.776884,136.77,136.76,0.2572509]
[1726243013822,7.3106,136.79,136.76,0.2572509]
[1726243014046,1.82834,136.78,136.76,0.2572509]
[1726243015421,9.13934,136.78,136.76,0.2572509]
[1726243015629,1.82834,136.78,136.76,0.2572509]
[1726243016246,7.3114,136.78,136.76,0.2572509]
[1726243016422,29.2906,136.79,136.76,0.2572509]
[1726243016827,21.98,136.79,136.76,0.2572509]
[1726243017050,29.2906,136.79,136.76,0.2572509]
[1726243017245,21.98,136.79,136.76,0.2572509]
[1726243018046,29.2905,136.79,136.76,0.2572509]
[1726243019438,7.311,136.78,136.76,0.2572509]
[1726243020046,30.0,136.8,136.76,0.2572509]
[1726243020231,23.776884,136.78,136.76,0.2572509]
[1726243021054,23.776884,136.77,136.76,0.2572509]
[1726243021260,31.088384,136.77,136.76,0.2572509]
[1726243021550,32.91696496,136.77,136.76,0.2572509]
[1726243021760,63.16794496,136.77,136.76,0.2572509]
[1726243022542,61.339364,136.77,136.76,0.2572509]
[1726243022959,61.213874,136.77,136.76,0.2572509]
[1726243023641,53.902374,136.77,136.76,0.2572509]
[1726243023956,61.213874,136.77,136.76,0.2572509]
[1726243024659,7.3103,136.8,136.76,0.2572509]
[1726243024851,7.311,136.78,136.76,0.2572509]
[1726243025057,29.6051224,136.82,136.76,0.2572509]
[1726243025252,7.3103,136.8,136.76,0.2572509]
[1726243025435,7.6251224,136.82,136.76,0.2572509]
[1726243025637,56.8102,136.84,136.76,0.2572509]
[1726243025860,7.3097,136.81,136.76,0.2572509]
[1726243026067,1.82806693,136.8,136.76,0.2572509]
[1726243026361,1.8280686,136.79,136.76,0.2572509]
[1726243027253,1.82807842,136.8,136.76,0.2572509]
[1726243027458,14.9225815,136.84,136.76,0.2572509]
[1726243027651,7.6142815,136.84,136.77,22.56337839]
[1726243028554,1.82747622,136.83,136.76,20.2572509]
[1726243028869,1.8277046,136.82,136.76,20.2572509]
[1726243029177,7.6142815,136.84,136.76,0.2572509]
[1726243029767,7.6142815,136.84,136.77,22.56337839]
[1726243030177,14.9224815,136.84,136.77,0.12549]
[1726243030351,7.3058,136.88,136.8,22.43788839]
[1726243031470,7.3062,136.87,136.8,22.43788839]
[1726243031961,7.3058,136.88,136.8,22.43788839]
[1726243032355,7.3062,136.87,136.8,22.43788839]
[1726243032570,11.42744148,136.9,136.82,22.56337839]
[1726243032754,7.61371443,136.9,136.84,22.43788839]
[1726243032949,0.2572509,136.91,136.87,6.3413]
[1726243034273,2.08370165,136.91,136.87,6.3413]
[1726243034458,0.2572509,136.91,136.87,6.3413]
[1726243038177,0.2572509,136.91,136.88,22.43788839]
[1726243038382,0.2572509,136.91,136.87,6.3413]
[1726243047275,7.5612509,136.91,136.87,6.3413]
[1726243047492,0.2572509,136.91,136.87,6.3413]
[1726243048077,2.08363643,136.91,136.86,16.0077]
[1726243048274,7.5613509,136.91,136.86,16.0077]
[1726243049399,0.2572509,136.91,136.86,16.0077]
[1726243049789,0.2572509,136.91,136.87,20.0]
[1726243050096,0.2572509,136.91,136.89,6.394]
[1726243050299,0.2572509,136.91,136.9,0.12549]
[1726243050604,0.2572509,136.91,136.89,6.394]
[1726243062810,0.2572509,136.91,136.87,20.0]
[1726243063007,0.2572509,136.91,136.86,16.0077]
[1726243063514,0.2572509,136.91,136.87,20.0]
[1726243064112,0.2572509,136.91,136.86,16.0077]
[1726243064697,0.2572509,136.91,136.85,6.6088]
[1726243064897,7.3052,136.89,136.82,22.7582]
[1726243065288,0.2572509,136.91,136.82,22.7582]
[1726243065485,7.3052,136.89,136.82,22.7582]
[1726243066216,7.3052,136.89,136.83,20.0]
[1726243068915,7.3057,136.88,136.83,0.12549]
[1726243069092,9.13237316,136.88,136.82,22.7582]
[1726243069296,7.3067,136.87,136.82,22.7582]
[1726243069511,7.3068,136.86,136.82,22.7582]
[1726243069688,1.82705672,136.85,136.78,44.42838839]
[1726243069889,1.82705672,136.85,136.78,21.9905]
[1726243070115,1.82705661,136.88,136.78,21.9905]
[1726243070310,7.3067,136.86,136.78,21.9905]
[1726243070821,7.3078,136.84,136.78,21.9905]
[1726243071003,1.82736061,136.87,136.78,21.9905]
[1726243071208,9.13421483,136.86,136.78,21.9905]
[1726243071523,7.3063,136.87,136.78,21.9905]
[1726243071902,7.3057,136.88,136.79,20.0]
[1726243072107,7.3052,136.89,136.8,23.776884]
[1726243072302,7.3053,136.89,136.8,23.776884]
[1726243072512,7.3053,136.89,136.83,0.12549]
[1726243073222,7.3054,136.89,136.83,0.12549]
[1726243074422,7.3059,136.88,136.81,24.027864]
[1726243074726,7.306,136.88,136.81,24.027864]
[1726243075019,7.3057,136.88,136.81,24.027864]
[1726243075796,7.3051,136.89,136.81,24.027864]
[1726243079421,0.2572509,136.91,136.83,46.46575239]
[1726243079910,0.2572509,136.91,136.85,24.027864]
[1726243080115,2.08354902,136.91,136.82,43.776884]
[1726243080325,7.3055,136.89,136.82,23.776884]
[1726243080628,7.3047,136.9,136.82,23.776884]
[1726243080834,0.2572509,136.91,136.82,23.776884]
[1726243081002,0.2572509,136.91,136.83,22.43788839]
[1726243081200,0.2572509,136.91,136.82,23.776884]
[1726243081201,7.3052,136.89,136.82,23.776884]
[1726243081421,0.2572509,136.91,136.83,0.25098]
[1726243081819,7.3052,136.89,136.83,0.25098]
[1726243082027,7.3057,136.88,136.82,21.5979]
[1726243082219,7.3057,136.88,136.83,0.25098]
[1726243082411,1.82670481,136.87,136.82,21.5979]
[1726243084919,7.3057,136.88,136.82,21.5979]
[1726243086030,7.3062,136.87,136.82,21.5979]
[1726243086734,7.3058,136.88,136.82,21.5979]
[1726243087233,7.3062,136.87,136.82,21.5979]
[1726243087728,7.3058,136.88,136.82,21.5979]
[1726243088619,9.13302161,136.87,136.82,21.5979]
[1726243088823,7.3062,136.87,136.82,21.5979]
[1726243089219,7.3058,136.88,136.82,21.5979]
[1726243089622,9.13342121,136.87,136.82,21.5979]
[1726243089828,7.3066,136.87,136.82,21.5979]
[1726243090132,1.8270486,136.86,136.82,21.5979]
[1726243090816,7.3057,136.88,136.82,21.5979]
[1726243093339,7.62743621,136.9,136.83,24.027864]